bitfinex/quotes_SOLUSD_20240717
["timestamp","ask_amount","ask_price","bid_price","bid_amount"]
[1721181041786,14.82,162.5,162.49,0.8402016]
[1721181042087,15.4229459,162.5,162.49,0.8402016]
[1721181042787,14.82,162.51,162.49,0.8402016]
[1721181043092,15.4229459,162.51,162.49,0.8402016]
[1721181043299,14.82,162.51,162.49,0.8402016]
[1721181043496,0.6029459,162.51,162.49,0.8402016]
[1721181043669,15.4229459,162.51,162.49,0.8402016]
[1721181044473,6.1527,162.53,162.49,0.8402016]
[1721181044682,14.82,162.51,162.49,0.8402016]
[1721181044878,15.4229459,162.5,162.49,0.8402016]
[1721181045886,14.82,162.5,162.49,0.8402016]
[1721181046685,6.7556459,162.53,162.49,0.8402016]
[1721181046901,0.6029459,162.53,162.49,0.8402016]
[1721181047066,15.4229459,162.54,162.49,2.07087797]
[1721181047563,0.6029459,162.55,162.49,16.89087797]
[1721181047759,14.82,162.55,162.49,16.89087797]
[1721181047974,14.82,162.55,162.5,14.82]
[1721181048189,6.7541459,162.57,162.51,16.05049439]
[1721181048406,0.6029459,162.59,162.52,7.3833182]
[1721181048559,0.6029459,162.59,162.53,20.9723]
[1721181048766,14.82,162.58,162.54,1.23030139]
[1721181048964,15.4229459,162.59,162.54,1.23030139]
[1721181049293,6.7522459,162.62,162.55,6.1518]
[1721181049497,14.82,162.61,162.56,6.1515]
[1721181049672,14.82,162.61,162.56,20.9715]
[1721181050298,0.6029459,162.66,162.6,14.82]
[1721181050596,20.9689,162.64,162.59,14.82]
[1721181050891,14.82,162.64,162.6,1.2298568]
[1721181051098,14.82,162.65,162.61,1.22976882]
[1721181051396,14.82,162.67,162.61,16.04976882]
[1721181051595,6.7507459,162.66,162.61,14.82]
[1721181051896,14.82,162.65,162.6,14.82]
[1721181052064,6.1474,162.67,162.61,16.04974734]
[1721181052264,6.1474,162.67,162.61,1.22974734]
[1721181052461,0.6029459,162.66,162.61,1.22974734]
[1721181052685,0.6029459,162.66,162.6,6.15]
[1721181052892,6.7507459,162.66,162.59,21.5255]
[1721181053077,0.6029459,162.69,162.59,15.3752]
[1721181053295,0.6029459,162.69,162.6,1.39962077]
[1721181053466,6.7496459,162.69,162.62,6.1492]
[1721181053673,0.6029459,162.7,162.64,6.1484]
[1721181053874,6.7488459,162.71,162.65,1.22941113]
[1721181054088,6.1462,162.7,162.65,1.22941113]
[1721181054261,6.1462,162.7,162.64,6.1484]
[1721181054467,0.6029459,162.71,162.65,6.1481]
[1721181054709,0.6029459,162.71,162.66,1.22932373]
[1721181054881,0.6029459,162.74,162.67,1.2293239]
[1721181055203,6.1456,162.72,162.65,15.3696]
[1721181055406,6.7488459,162.71,162.65,15.3696]
[1721181055575,6.1455,162.72,162.65,22.74701819]
[1721181056010,0.6029459,162.71,162.65,1.22931819]
[1721181056189,6.1463,162.7,162.65,1.22931819]
[1721181056394,0.6029459,162.74,162.63,0.34]
[1721181056588,6.1455,162.72,162.65,6.1481]
[1721181056792,6.1455,162.72,162.66,1.22927873]
[1721181057099,0.6029459,162.71,162.65,6.1481]
[1721181057402,6.1456,162.72,162.65,15.3696]
[1721181057606,15.3623,162.74,162.64,0.17]
[1721181057814,6.1447,162.74,162.67,6.1474]
[1721181058186,6.4941,162.75,162.66,15.3685]
[1721181058412,6.4941,162.75,162.67,0.34]
[1721181059103,6.1445,162.75,162.67,1.56905971]
[1721181059319,6.1445,162.75,162.67,0.34]
[1721181059807,6.1445,162.75,162.68,6.1467]
[1721181059981,36.1549,162.79,162.69,0.34]
[1721181060186,20.0,162.78,162.69,6.4863]
[1721181060493,20.0,162.78,162.7,1.228938]
[1721181060706,20.0,162.78,162.69,0.34]
[1721181061086,6.4249,162.79,162.7,16.59378861]
[1721181061306,22.03930704,162.81,162.71,1.56876221]
[1721181061609,22.03930704,162.81,162.72,1.2287746]
[1721181061610,15.6489,162.81,162.72,1.2287746]
[1721181061780,15.6489,162.81,162.73,1.39877432]
[1721181061981,6.1425,162.8,162.74,1.39864714]
[1721181062595,6.1429,162.79,162.74,1.39864714]
[1721181062809,6.1425,162.8,162.75,1.22864622]
[1721181063118,21.7784,162.83,162.76,0.17]
[1721181063119,6.1422,162.81,162.76,0.17]
[1721181063322,6.1422,162.81,162.74,6.3147]
[1721181063690,6.4249,162.83,162.74,0.17]
[1721181063920,20.0,162.82,162.74,0.17]
[1721181064218,20.0,162.82,162.69,15.3663]
[1721181064416,6.1438,162.77,162.7,6.3159]
[1721181064721,6.1448,162.74,162.68,15.2311]
[1721181065187,15.359,162.78,162.68,15.2311]
[1721181065389,20.0,162.77,162.68,15.2311]
[1721181065706,6.1452,162.73,162.68,15.2311]
[1721181065927,6.1452,162.73,162.69,1.22912487]
[1721181066224,6.1456,162.72,162.66,15.3691]
[1721181066505,35.6868,162.77,162.67,7.37652311]
[1721181066506,6.1452,162.73,162.67,7.37652311]
[1721181066723,35.6868,162.77,162.68,1.22917673]
[1721181067093,6.1448,162.74,162.68,1.22917673]
[1721181067812,6.1448,162.74,162.68,7.37617673]
[1721181068113,35.6868,162.77,162.68,7.37617673]
[1721181068114,26.1437,162.77,162.7,6.1461]
[1721181068414,20.0,162.77,162.71,16.76302091]
[1721181068621,6.1428,162.8,162.73,6.145]
[1721181069192,6.1428,162.8,162.74,1.22873831]
[1721181069420,6.1429,162.79,162.72,22.8082]
[1721181069722,6.1433,162.78,162.72,16.6628]
[1721181069935,21.7789,162.83,162.72,16.6628]
[1721181070142,6.1444,162.75,162.68,30.8228]
[1721181070299,15.3559,162.81,162.69,1.56899873]
[1721181070495,15.3559,162.81,162.69,6.4865]
[1721181070496,20.0,162.8,162.69,6.4865]
[1721181070708,20.0,162.8,162.7,7.37520904]
[1721181070907,20.0,162.8,162.69,6.4866]
[1721181071109,6.1442,162.76,162.69,6.4866]
[1721181071332,6.1442,162.76,162.7,6.1462]
[1721181071620,6.1441,162.76,162.71,0.34]
[1721181071828,6.1441,162.76,162.69,6.3165]
[1721181072028,6.1441,162.76,162.7,0.17]
[1721181073004,6.1445,162.75,162.69,0.17]
[1721181073203,6.1447,162.74,162.68,30.8228]
[1721181073405,6.1447,162.74,162.69,0.17]
[1721181073618,6.1444,162.75,162.69,0.17]
[1721181073904,6.144,162.76,162.69,6.3166]
[1721181074108,20.0,162.75,162.7,6.1462]
[1721181074510,20.0,162.75,162.71,7.37467664]
[1721181074729,20.0,162.81,162.7,15.365]
[1721181075022,6.1433,162.78,162.71,7.37464796]
[1721181075230,26.1436,162.77,162.71,1.22894796]
[1721181075431,6.1436,162.77,162.71,1.22894796]
[1721181075613,20.0,162.76,162.71,1.22894796]
[1721181076203,20.0,162.76,162.72,6.1455]
[1721181076428,20.0,162.77,162.73,1.22884151]
[1721181076630,6.1433,162.78,162.73,1.22884151]
[1721181077325,6.1436,162.77,162.73,1.22884151]
[1721181077531,6.1436,162.77,162.72,1.22888497]
[1721181077735,6.1441,162.76,162.7,21.5112]
[1721181077916,6.1441,162.76,162.71,0.34]
[1721181078116,6.1436,162.77,162.71,1.56888848]
[1721181078325,6.1432,162.79,162.72,6.1454]
[1721181078630,20.0,162.78,162.72,6.1454]
[1721181078934,20.0,162.78,162.74,6.1446]
[1721181079227,6.1429,162.79,162.73,15.7026]
[1721181079442,6.1429,162.79,162.73,15.3626]
[1721181079931,15.353,162.84,162.72,6.1454]
[1721181079932,6.1433,162.78,162.72,6.1454]
[1721181080231,6.1433,162.78,162.73,0.17]
[1721181080412,6.1437,162.77,162.71,0.17]
[1721181080735,6.1433,162.78,162.71,0.34]
[1721181081514,6.1429,162.79,162.72,1.2288216]
[1721181081719,6.1429,162.79,162.73,0.34]
[1721181082013,6.1429,162.79,162.71,0.34]
[1721181082218,6.1425,162.8,162.73,6.1448]
[1721181082417,20.0,162.79,162.74,0.34]
[1721181082638,20.0,162.79,162.74,7.71336015]
[1721181082823,20.0,162.79,162.75,6.1442]
[1721181083133,6.1431,162.79,162.72,21.5085]
[1721181083339,6.1431,162.79,162.73,0.34]
[1721181083930,6.1426,162.8,162.73,6.485]
[1721181084235,20.0,162.79,162.74,6.1446]
[1721181084421,20.0,162.79,162.75,0.34]
[1721181084843,6.1422,162.81,162.75,0.34]
[1721181085013,20.0,162.8,162.75,0.34]
[1721181085336,26.1426,162.8,162.75,0.34]
[1721181085630,26.1426,162.8,162.74,0.34]
[1721181085823,61.3878,162.85,162.75,16.2349]
[1721181086026,20.0,162.84,162.76,7.37226087]
[1721181086405,6.142,162.82,162.76,1.22856087]
[1721181086610,20.0,162.81,162.77,1.2285608]
[1721181087150,8.61999058,162.87,162.77,1.2285608]
[1721181087447,6.1395,162.88,162.78,26.92552673]
[1721181087816,6.3663,162.91,162.78,26.92552673]
[1721181087817,6.1398,162.87,162.81,6.142]
[1721181088151,15.3478,162.89,162.8,0.34]
[1721181088323,15.3478,162.89,162.79,0.17]
[1721181088519,6.1414,162.83,162.78,0.34]
[1721181088713,45.0805,162.87,162.77,0.17]
[1721181088928,45.0805,162.87,162.75,31.5956]
[1721181088929,6.1424,162.81,162.75,31.5956]
[1721181089438,6.1418,162.82,162.75,37.7398]
[1721181089936,6.1418,162.82,162.76,1.2285239]
[1721181090309,6.1421,162.81,162.75,38.0798]
[1721181090542,20.0,162.86,162.75,38.0798]
[1721181090543,20.0,162.86,162.75,16.5749]
[1721181090745,6.1432,162.79,162.75,16.2349]
[1721181090909,50.7025,162.86,162.71,16.4395]
[1721181090910,15.3541,162.83,162.71,16.4395]
[1721181091116,6.1444,162.75,162.71,16.4395]
[1721181091730,6.1447,162.74,162.67,15.7647]
[1721181091929,6.1444,162.75,162.67,21.9117]
[1721181092113,6.144,162.76,162.69,6.1466]
[1721181092322,20.0,162.75,162.69,6.1466]
[1721181092553,15.3646,162.72,162.56,15.9597]
[1721181092725,35.8762,162.71,162.6,16.39016018]
[1721181092929,20.0,162.7,162.58,40.7533]
[1721181093230,35.3631,162.73,162.6,15.3751]
[1721181093649,35.3631,162.73,162.61,1.22958354]
[1721181093825,35.3631,162.73,162.6,25.3751]
[1721181094154,6.1491,162.63,162.56,37.4898]
[1721181094449,6.1493,162.62,162.56,15.9597]
[1721181094621,6.1489,162.63,162.56,22.1112]
[1721181094818,6.1482,162.65,162.57,6.1511]
[1721181095251,20.0,162.64,162.56,15.9597]
[1721181095432,26.1485,162.64,162.56,15.9597]
[1721181096343,26.1485,162.64,162.57,6.151]
[1721181096545,6.5625,162.63,162.52,6.39143287]
[1721181096724,6.5625,162.63,162.5,15.3841]
[1721181096725,6.5625,162.63,162.53,25.3817]
[1721181097055,20.0,162.62,162.57,6.1511]
[1721181097223,26.1488,162.64,162.58,1.2299513]
[1721181097422,20.0,162.64,162.58,1.2299513]
[1721181097629,6.1485,162.65,162.58,1.2299513]
[1721181097822,26.1487,162.64,162.57,0.34]
[1721181098021,6.149,162.63,162.58,0.34]
[1721181098327,6.149,162.63,162.57,0.17]
[1721181098328,6.1493,162.62,162.56,15.3788]
[1721181098544,6.1489,162.63,162.57,0.17]
[1721181098733,26.1486,162.64,162.57,7.72100011]
[1721181098928,6.1489,162.63,162.57,0.34]
[1721181099129,6.15,162.61,162.53,6.1526]
[1721181099331,6.1506,162.59,162.52,15.3823]
[1721181099726,6.15,162.61,162.52,15.3823]
[1721181099931,20.0,162.6,162.53,6.1526]
[1721181100225,26.1501,162.6,162.53,6.1526]
[1721181100427,20.0,162.6,162.52,0.34]
[1721181100757,20.0,162.62,162.53,0.17]
[1721181100933,6.1504,162.6,162.53,6.3225]
[1721181102054,6.1505,162.59,162.53,0.17]
[1721181102241,6.1505,162.59,162.53,0.34]
[1721181102647,6.1501,162.6,162.53,6.4926]
[1721181103662,6.1508,162.58,162.52,15.382]
[1721181103835,6.1513,162.57,162.51,0.17]
[1721181104455,6.1508,162.58,162.51,6.3234]
[1721181104949,6.15,162.6,162.54,6.1522]
[1721181105166,6.1505,162.59,162.53,6.1526]
[1721181105453,6.15,162.6,162.51,15.553]
[1721181105651,6.1505,162.59,162.52,0.34]
[1721181106451,6.1505,162.59,162.52,6.493]
[1721181107238,6.1483,162.65,162.58,6.1507]
[1721181107437,6.1485,162.64,162.58,6.1507]
[1721181107654,6.1482,162.65,162.58,21.5272]
[1721181108141,6.1486,162.64,162.58,15.3765]
[1721181108337,6.1486,162.64,162.58,21.5272]
[1721181108542,6.1481,162.66,162.59,6.1504]
[1721181108757,33.8174,162.69,162.58,15.3765]
[1721181108957,20.0,162.65,162.6,6.1499]
[1721181109162,6.1477,162.67,162.6,6.1499]
[1721181109361,20.0,162.66,162.6,6.1499]
[1721181109554,6.1484,162.65,162.58,15.3765]
[1721181109750,6.1484,162.65,162.58,21.527]
[1721181110743,20.0,162.66,162.59,6.1503]
[1721181110744,26.1478,162.66,162.59,6.1503]
[1721181111150,26.1478,162.66,162.6,6.1499]
[1721181111464,26.1478,162.66,162.59,6.1503]
[1721181111845,20.0,162.66,162.61,15.3741]
[1721181112048,20.0,162.67,162.6,6.1497]
[1721181112342,6.1481,162.66,162.58,15.3766]
[1721181112546,20.0,162.65,162.6,6.1497]
[1721181113059,20.0,162.65,162.59,7.38015985]
[1721181113261,6.1492,162.63,162.58,0.17]
[1721181113480,20.0,162.65,162.59,6.1503]
[1721181113674,20.0,162.65,162.6,1.22985361]
[1721181114273,20.0,162.65,162.6,16.60405361]
[1721181114564,20.17,162.7,162.6,15.3742]
[1721181114863,6.1474,162.67,162.6,21.5242]
[1721181115067,26.1479,162.66,162.6,21.5242]
[1721181115368,20.0,162.65,162.6,21.5242]
[1721181115869,6.1471,162.68,162.61,1.39982571]
[1721181116173,6.1475,162.67,162.61,0.17]
[1721181116347,6.1471,162.68,162.61,6.1496]
[1721181116746,6.1467,162.69,162.62,7.37859593]
[1721181117061,6.1467,162.69,162.63,6.1487]
[1721181117269,21.7362,162.72,162.66,6.1477]
[1721181117270,6.3722,162.72,162.66,6.1477]
[1721181117473,6.1455,162.73,162.66,6.1477]
[1721181117645,6.1456,162.72,162.65,6.148]
[1721181117850,6.1456,162.72,162.66,1.22935975]
[1721181118156,6.1451,162.74,162.67,6.147]
[1721181118562,6.1451,162.74,162.68,1.2291831]
[1721181118941,6.1452,162.73,162.68,1.2291831]
[1721181119144,6.1762,162.76,162.66,15.3686]
[1721181119354,6.1762,162.76,162.67,0.17]
[1721181119870,6.1452,162.73,162.67,0.17]
[1721181120462,6.1448,162.74,162.67,6.3173]
[1721181120642,20.0,162.73,162.67,6.3173]
[1721181121064,26.1452,162.73,162.67,6.3173]
[1721181121576,20.0,162.73,162.62,15.3729]
[1721181121872,6.147,162.68,162.61,6.1495]
[1721181122246,6.1475,162.67,162.6,6.1497]
[1721181122959,6.1475,162.67,162.59,15.3757]
[1721181122960,6.1471,162.68,162.61,6.1496]
[1721181123369,6.1467,162.69,162.62,6.149]
[1721181123572,29.73,162.71,162.61,15.3735]
[1721181123879,26.1465,162.7,162.62,6.1489]
[1721181124174,6.1467,162.69,162.62,6.1489]
[1721181124383,6.1473,162.68,162.61,21.523]
[1721181124548,6.1473,162.68,162.62,6.1491]
[1721181124752,6.1467,162.69,162.62,6.1491]
[1721181125275,26.1463,162.7,162.63,6.1488]
[1721181125477,20.0,162.7,162.63,15.3715]
[1721181125660,20.0,162.7,162.64,0.17]
[1721181125863,29.73,162.74,162.63,15.3715]
[1721181125864,20.0,162.73,162.63,15.3715]
[1721181126559,6.1474,162.68,162.59,15.3754]
[1721181126759,45.0926,162.74,162.64,6.1484]
[1721181126964,6.1464,162.7,162.63,6.1488]
[1721181127270,45.0926,162.74,162.61,21.5231]
[1721181127271,15.3643,162.72,162.61,21.5231]
[1721181127571,29.73,162.66,162.5,16.6287]
[1721181127869,0.17,162.65,162.55,15.3797]
[1721181128178,6.1496,162.61,162.55,15.3797]
[1721181128482,6.15,162.6,162.53,6.1526]
[1721181128654,6.1504,162.59,162.53,6.1526]
[1721181129056,6.1516,162.56,162.49,16.2257016]
[1721181129256,48.18,162.6,162.49,0.8402016]
[1721181129467,6.152,162.55,162.49,0.8402016]
[1721181130482,18.79,162.59,162.49,0.8402016]
[1721181130778,38.45,162.58,162.49,0.8402016]
[1721181131007,6.1538,162.5,162.49,0.8402016]
[1721181131354,20.0,162.5,162.49,0.8402016]
[1721181132468,44.9438,162.5,162.49,0.8402016]
[1721181133157,26.4938,162.5,162.49,0.8402016]
[1721181133362,26.1538,162.5,162.49,0.8402016]
[1721181133666,26.3238,162.5,162.49,0.8402016]
[1721181134259,44.7738,162.5,162.49,0.8402016]
[1721181134458,26.3238,162.5,162.49,0.8402016]
[1721181134660,26.1538,162.5,162.49,0.8402016]
[1721181135272,26.3238,162.5,162.49,0.8402016]
[1721181135478,26.1538,162.5,162.49,0.8402016]
[1721181136289,20.0,162.5,162.49,0.8402016]
[1721181136871,6.153,162.53,162.49,0.8402016]
[1721181137080,6.1531,162.52,162.49,0.8402016]
[1721181137281,6.1534,162.51,162.49,0.8402016]
[1721181137484,6.1531,162.52,162.49,0.8402016]
[1721181137668,15.3804,162.55,162.49,0.8402016]
[1721181138074,6.1538,162.5,162.49,0.8402016]
[1721181138529,6.1534,162.51,162.49,0.8402016]
[1721181138668,6.1531,162.52,162.49,0.8402016]
[1721181138992,26.1535,162.51,162.49,0.8402016]
[1721181139693,20.0,162.51,162.49,0.8402016]
[1721181139874,22.668,162.56,162.49,0.8402016]
[1721181139875,20.0,162.53,162.49,0.8402016]
[1721181140188,20.0,162.55,162.49,0.8402016]
[1721181140367,6.1531,162.52,162.49,0.8402016]
[1721181140569,20.0,162.51,162.49,0.8402016]
[1721181140987,6.1523,162.55,162.49,0.8402016]
[1721181141294,22.668,162.56,162.49,0.8402016]
[1721181141295,26.1523,162.54,162.49,0.8402016]
[1721181141481,20.0,162.54,162.49,0.8402016]
[1721181141683,6.0404,162.6,162.49,16.2250016]
[1721181141997,6.1505,162.59,162.52,6.153]
[1721181142199,6.1502,162.6,162.53,6.1523]
[1721181142366,15.3729,162.63,162.51,15.3828]
[1721181142571,6.1509,162.58,162.51,15.3828]
[1721181142873,6.1509,162.58,162.51,21.5361]
[1721181143074,6.1512,162.57,162.51,15.3828]
[1721181143379,6.1517,162.56,162.49,6.9943016]
[1721181143579,6.1517,162.56,162.5,6.1537]
[1721181143988,15.3769,162.59,162.49,0.8402016]
[1721181144204,18.45,162.57,162.49,0.8402016]
[1721181144365,6.1527,162.54,162.49,0.8402016]
[1721181145015,26.1518,162.56,162.49,0.8402016]
[1721181145513,6.1521,162.55,162.49,0.8402016]
[1721181146028,26.1515,162.56,162.49,0.8402016]
[1721181146413,20.0,162.56,162.49,16.2257016]
[1721181146615,18.45,162.63,162.49,16.2257016]
[1721181146832,6.1503,162.6,162.52,6.1529]
[1721181147116,6.1506,162.59,162.52,6.1529]
[1721181147319,6.15,162.6,162.53,6.1527]
[1721181148106,18.45,162.63,162.54,6.1522]
[1721181148107,6.1498,162.61,162.54,6.1522]
[1721181148311,6.1498,162.61,162.53,6.1526]
[1721181148532,6.0404,162.64,162.55,6.1518]
[1721181148705,15.3732,162.63,162.5,0.17]
[1721181148915,33.8232,162.63,162.5,6.4938]
[1721181149109,33.8232,162.63,162.5,6.3238]
[1721181149420,0.17,162.62,162.5,6.3238]
[1721181149712,6.1516,162.56,162.49,0.8402016]
[1721181150094,6.1511,162.58,162.51,6.1534]
[1721181150295,20.0,162.57,162.52,6.1529]
[1721181150600,38.62,162.62,162.51,15.3834]
[1721181150800,0.17,162.61,162.49,0.8402016]
[1721181151002,18.45,162.6,162.49,6.9942016]
[1721181151296,6.1519,162.55,162.49,0.8402016]
[1721181151718,6.1523,162.54,162.49,0.8402016]
[1721181152313,38.79,162.59,162.49,0.8402016]
[1721181152314,6.1533,162.52,162.49,0.8402016]
[1721181152505,6.1527,162.53,162.49,0.8402016]
[1721181152706,6.0164,162.56,162.49,0.8402016]
[1721181152707,6.1523,162.54,162.49,0.8402016]
[1721181152905,20.0,162.53,162.49,0.8402016]
[1721181153303,6.1538,162.5,162.49,0.8402016]
[1721181153630,6.1534,162.52,162.49,0.8402016]
[1721181153802,20.0,162.51,162.49,0.8402016]
[1721181154125,6.1538,162.5,162.49,0.8402016]
[1721181154830,26.1535,162.51,162.49,0.8402016]
[1721181155006,6.1538,162.5,162.49,0.8402016]
[1721181155525,26.1534,162.51,162.49,0.8402016]
[1721181155824,26.1535,162.51,162.49,0.8402016]
[1721181156332,6.1538,162.5,162.49,0.8402016]
[1721181156926,26.3238,162.5,162.49,0.8402016]
[1721181157110,26.4938,162.5,162.49,0.8402016]
[1721181157902,26.3238,162.5,162.49,0.8402016]
[1721181158416,26.1538,162.5,162.49,0.8402016]
[1721181159323,20.0,162.5,162.49,0.8402016]
[1721181159539,6.1523,162.54,162.49,0.8402016]
[1721181160727,31.5756,162.59,162.49,0.8402016]
[1721181160930,6.1527,162.53,162.49,0.8402016]
[1721181161806,6.1535,162.51,162.49,0.8402016]
[1721181162324,33.829,162.56,162.49,0.8402016]
[1721181162545,38.79,162.55,162.49,0.8402016]
[1721181162706,20.34,162.55,162.49,0.8402016]
[1721181163103,6.1538,162.5,162.49,0.8402016]
[1721181163337,26.1538,162.5,162.49,0.8402016]
[1721181163514,41.5384,162.5,162.49,0.8402016]
[1721181163714,6.1569,162.42,162.34,16.0871]
[1721181164031,15.3865,162.48,162.35,7.39079406]
[1721181164333,6.1565,162.43,162.35,7.39119406]
[1721181164515,20.0,162.42,162.35,7.39119406]
[1721181164905,15.3865,162.48,162.35,15.3985]
[1721181165239,20.0,162.47,162.35,15.3985]
[1721181165414,6.1572,162.42,162.35,15.3985]
[1721181165618,20.0,162.47,162.35,15.3985]
[1721181165917,6.1575,162.41,162.34,22.2466]
[1721181166108,6.1569,162.42,162.35,7.39108164]
[1721181166430,6.1569,162.42,162.34,23.47826263]
[1721181166630,6.1573,162.41,162.34,23.47826263]
[1721181166815,53.8382,162.47,162.34,17.31876263]
[1721181167021,0.17,162.46,162.34,17.31876263]
[1721181167230,6.1572,162.41,162.34,17.31876263]
[1721181167413,6.1572,162.41,162.34,17.31880078]
[1721181167740,6.1569,162.42,162.34,17.31880078]
[1721181167906,35.3882,162.47,162.35,15.398]
[1721181168110,15.3473,162.5,162.37,15.3961]
[1721181168418,6.1553,162.47,162.4,6.1576]
[1721181169122,21.8386,162.51,162.4,15.3939]
[1721181169442,6.1546,162.48,162.41,6.1572]
[1721181170016,6.1549,162.47,162.4,21.5515]
[1721181170533,6.155,162.47,162.4,21.5511]
[1721181170739,40.2886,162.51,162.36,15.3975]
[1721181170908,20.0,162.5,162.37,0.17]
[1721181171106,38.45,162.5,162.36,15.3975]
[1721181171309,6.1569,162.42,162.36,15.3975]
[1721181171528,6.1564,162.44,162.36,21.5565]
[1721181171710,6.1564,162.44,162.36,15.3975]
[1721181171922,15.3865,162.48,162.36,15.3975]
[1721181172124,6.1569,162.42,162.36,15.3975]
[1721181172331,6.1565,162.43,162.36,21.5566]
[1721181173219,33.8365,162.48,162.36,15.3975]
[1721181174027,6.1566,162.43,162.36,21.5566]
[1721181174221,6.1572,162.42,162.34,22.2469]
[1721181174422,6.1572,162.42,162.35,6.1591]
[1721181174725,33.8365,162.48,162.36,6.159]
[1721181174929,20.0,162.47,162.36,6.159]
[1721181175335,6.1566,162.43,162.36,6.159]
[1721181175532,20.0,162.47,162.35,15.3979]
[1721181176449,6.156,162.45,162.38,6.1582]
[1721181176644,6.1562,162.44,162.37,6.1587]
[1721181176855,6.1565,162.43,162.37,6.1587]
[1721181177342,6.1565,162.43,162.35,21.557]
[1721181177647,6.1565,162.43,162.37,6.1587]
[1721181178040,20.0,162.47,162.35,15.3979]
[1721181178565,6.1565,162.43,162.36,6.1588]
[1721181178949,20.0,162.47,162.37,16.62775399]
[1721181179124,6.1557,162.45,162.38,6.1583]
[1721181179320,6.1557,162.45,162.39,1.23140142]
[1721181179720,15.3881,162.47,162.36,15.3978]
[1721181179919,20.0,162.46,162.36,15.3978]
[1721181180143,6.1564,162.44,162.37,6.1587]
[1721181180649,26.1556,162.46,162.39,6.1579]
[1721181181328,40.2888,162.51,162.38,15.3952]
[1721181181329,21.8388,162.51,162.41,6.1572]
[1721181181527,6.4543,162.51,162.42,22.62795488]
[1721181181829,6.4543,162.51,162.43,1.23109729]
[1721181181830,6.1545,162.49,162.43,1.23109729]
[1721181182337,6.1538,162.5,162.43,7.38739729]
[1721181182542,6.1542,162.49,162.43,7.38739729]
[1721181182743,6.1539,162.5,162.43,7.38739729]
[1721181183054,6.1535,162.51,162.44,6.1558]
[1721181183761,6.1531,162.52,162.45,6.1556]
[1721181183971,15.3825,162.53,162.44,0.17]
[1721181184257,15.3825,162.53,162.43,0.34]
[1721181184481,6.1542,162.49,162.42,15.4101]
[1721181184629,6.1542,162.49,162.43,6.1564]
[1721181185268,6.1547,162.48,162.42,15.2401]
[1721181185435,6.1542,162.49,162.42,21.3969]
[1721181186234,24.7305,162.56,162.42,21.3969]
[1721181186235,21.6596,162.56,162.42,30.6313]
[1721181186447,20.0,162.55,162.43,0.34]
[1721181186653,6.153,162.53,162.46,6.1552]
[1721181186842,6.1532,162.52,162.45,6.1556]
[1721181187563,6.1535,162.51,162.46,1.23083644]
[1721181187779,6.1535,162.51,162.44,15.3897]
[1721181187949,6.1531,162.52,162.45,6.1557]
[1721181188270,20.0,162.55,162.44,15.3897]
[1721181188572,6.1543,162.49,162.43,0.17]
[1721181188775,6.1547,162.48,162.42,21.3968]
[1721181188938,6.155,162.47,162.42,15.2401]
[1721181190045,15.3845,162.51,162.42,21.3968]
[1721181190046,6.1546,162.48,162.42,21.3968]
[1721181190855,6.1542,162.49,162.43,6.1564]
[1721181191056,6.1542,162.49,162.42,21.3968]
[1721181191663,6.1547,162.48,162.42,21.3968]
[1721181191857,6.1545,162.49,162.42,21.3968]
[1721181192057,6.1545,162.49,162.42,15.2401]
[1721181192265,6.1546,162.48,162.42,15.2401]